bitfinex-derivatives/quotes_SOLF0:USTF0_20250520
["timestamp","ask_amount","ask_price","bid_price","bid_amount"]
[1747774786511,0.03796877,168.54,168.52,5.9315]
[1747774787514,0.03796877,168.54,168.51,0.04044736]
[1747774788009,5.9317,168.52,168.51,0.04044736]
[1747774792806,0.03796877,168.54,168.51,0.04044736]
[1747774793114,0.03796877,168.54,168.53,5.9313]
[1747774793508,0.03796877,168.54,168.51,0.04044736]
[1747774794714,0.03796877,168.54,168.52,5.9315]
[1747774796117,0.03796877,168.54,168.53,5.9313]
[1747774799612,0.03796877,168.54,168.52,5.9315]
[1747774800822,0.03796877,168.54,168.53,5.9313]
[1747774802217,11.06201695,168.62,168.53,9.84117426]
[1747774802624,11.06201695,168.62,168.6,5.9287]
[1747774802826,11.06201695,168.62,168.56,103.74117426]
[1747774803126,0.04370491,168.61,168.58,5.9295]
[1747774803726,0.04370491,168.61,168.57,5.97300185]
[1747774804326,0.04370491,168.61,168.58,5.9295]
[1747774804525,0.04370491,168.61,168.57,0.04320185]
[1747774804825,5.9291,168.6,168.57,5.97290185]
[1747774805028,0.04370491,168.61,168.57,0.04320185]
[1747774806118,0.04370491,168.61,168.59,9.84117426]
[1747774806418,0.04370491,168.61,168.6,99.8289]
[1747774806623,7.9146,168.67,168.6,93.9]
[1747774806824,1.988,168.67,168.6,93.9]
[1747774807335,5.927,168.66,168.63,5.9276]
[1747774807627,0.04219013,168.66,168.63,0.03961721]
[1747774808020,5.96919013,168.66,168.63,5.96721721]
[1747774808423,0.04219013,168.66,168.63,0.03961721]
[1747774809128,0.04219013,168.66,168.65,5.9271]
[1747774809322,0.04219013,168.66,168.63,0.03961721]
[1747774809729,5.96919013,168.66,168.63,5.96731721]
[1747774810226,0.04219013,168.66,168.63,0.03961721]
[1747774810824,0.04219013,168.66,168.64,5.9272]
[1747774811523,5.96899013,168.66,168.63,5.96731721]
[1747774811723,5.96899013,168.66,168.63,0.03961721]
[1747774811933,0.04219013,168.66,168.63,0.03961721]
[1747774812130,0.04219013,168.66,168.64,5.9274]
[1747774812732,0.04219013,168.66,168.65,5.9271]
[1747774818636,0.04219013,168.66,168.64,99.5273]
[1747774819038,0.04219013,168.66,168.64,93.6]
[1747774820833,0.04219013,168.66,168.64,99.5273]
[1747774821236,0.04219013,168.66,168.64,93.6]
[1747774821537,0.04219013,168.66,168.65,5.9271]
[1747774822131,0.04219013,168.66,168.64,99.5273]
[1747774822331,0.04219013,168.66,168.64,93.6]
[1747774822640,0.04219013,168.66,168.63,0.03961721]
[1747774823040,0.04219013,168.66,168.58,241.72314713]
[1747774823239,5.9276,168.64,168.61,5.9284]
[1747774823435,2.02399013,168.66,168.58,241.72314713]
[1747774824044,2.02399013,168.66,168.6,0.04496699]
[1747774824243,5.9277,168.64,168.61,5.9283]
[1747774824443,2.02399013,168.66,168.6,0.04496699]
[1747774825547,5.9278,168.64,168.61,5.9285]
[1747774825846,5.9278,168.64,168.6,0.04496699]
[1747774826840,5.9278,168.64,168.61,5.9283]
[1747774827046,2.02399013,168.66,168.6,0.04496699]
[1747774827463,7.95099013,168.66,168.6,0.04496699]
[1747774827636,5.96919013,168.66,168.6,0.04496699]
[1747774828646,5.9272,168.65,168.6,0.04496699]
[1747774828845,0.04219013,168.66,168.6,0.04496699]
[1747774829251,5.9275,168.64,168.61,5.9283]
[1747774829948,0.04219013,168.66,168.6,0.04496699]
[1747774830449,5.9279,168.63,168.6,5.97386699]
[1747774830751,0.04219013,168.66,168.6,0.04496699]
[1747774830949,103.42117426,168.65,168.55,5.9303]
[1747774831150,4.0634,168.64,168.55,5.9303]
[1747774831645,9.84117426,168.59,168.5,606.3]
[1747774831840,2.029,168.58,168.5,93.6]
[1747774832043,5.9309,168.55,168.52,0.04057531]
[1747774832551,5.9311,168.54,168.52,0.04057531]
[1747774832953,0.04063267,168.56,168.52,0.04057531]
[1747774833347,5.9313,168.53,168.52,0.04057531]
[1747774833667,95.6344,168.55,168.47,5.9333]
[1747774834147,95.6344,168.55,168.46,1.28988538]
[1747774834353,95.6344,168.55,168.44,93.6]
[1747774834354,9.84117426,168.53,168.44,93.6]
[1747774834555,0.03950935,168.5,168.41,93.6]
[1747774834948,5.9333,168.48,168.44,5.9344]
[1747774835150,5.9333,168.48,168.41,93.6]
[1747774835348,0.04191282,168.46,168.41,93.6]
[1747774835550,0.04191282,168.46,168.45,5.9342]
[1747774837949,0.04191282,168.46,168.43,5.9345]
[1747774838146,93.48191282,168.46,168.38,93.44]
[1747774838351,93.48191282,168.46,168.35,94.72988538]
[1747774838656,0.04071673,168.42,168.39,5.9361]
[1747774838951,0.04071673,168.42,168.35,94.72988538]
[1747774839151,0.04071673,168.42,168.35,1.28988538]
[1747774839453,93.44,168.41,168.35,1.28988538]
[1747774839660,5.936,168.4,168.35,1.28988538]
[1747774839960,93.44,168.41,168.35,1.28988538]
[1747774840150,5.9361,168.4,168.35,7.22728538]
[1747774840345,0.04071673,168.42,168.35,1.28988538]
[1747774840556,0.04071673,168.42,168.34,9.84117426]
[1747774840759,0.04071673,168.42,168.41,5.9356]
[1747774842957,10.0577,168.49,168.45,5.934]
[1747774843158,2.0091,168.51,168.41,93.46]
[1747774843456,5.9324,168.51,168.47,5.9332]
[1747774843656,93.46,168.52,168.41,115.3696023]
[1747774843958,0.04165203,168.48,168.45,0.04071673]
[1747774844259,0.04165203,168.48,168.45,93.52071673]
[1747774844462,0.04165203,168.48,168.47,5.9335]
[1747774846559,606.24,168.58,168.53,5.9314]
[1747774846753,606.24,168.58,168.45,109.2014023]
[1747774846954,5.9311,168.54,168.45,109.2014023]
[1747774847153,512.76,168.58,168.45,93.48]
[1747774847354,93.48,168.54,168.45,93.48]
[1747774847557,0.04336213,168.51,168.48,0.04194815]
[1747774848161,5.9328,168.49,168.48,0.04194815]
[1747774849064,0.04336213,168.51,168.48,0.04194815]
[1747774849556,0.04336213,168.51,168.48,5.97484815]
[1747774849962,0.04336213,168.51,168.48,0.04194815]
[1747774850655,5.97566213,168.51,168.48,0.04194815]
[1747774851566,5.97566213,168.51,168.48,5.97504815]
[1747774851753,5.97566213,168.51,168.48,0.04194815]
[1747774852159,5.9325,168.5,168.48,0.04194815]
[1747774852364,0.04336213,168.51,168.48,0.04194815]
[1747774852866,0.04336213,168.51,168.49,5.9327]
[1747774853065,0.04336213,168.51,168.48,0.04194815]
[1747774853667,0.04336213,168.51,168.49,93.48]
[1747774854171,9.9917,168.6,168.49,93.48]
[1747774854663,4.0625,168.6,168.49,109.2014023]
[1747774854869,4.0625,168.6,168.5,1.9545]
[1747774855069,0.04364849,168.56,168.55,5.9307]
[1747774855467,3.9866,168.67,168.53,109.24190345]
[1747774855667,3.9866,168.67,168.53,109.2014023]
[1747774856265,3.9866,168.67,168.65,5.927]
[1747774856458,0.04318372,168.68,168.64,0.03754987]
[1747774856662,0.03802297,168.68,168.64,93.50151867]
[1747774856861,0.03802297,168.68,168.67,5.9264]
[1747774858666,0.03802297,168.68,168.64,93.50151867]
[1747774859272,0.03802297,168.68,168.65,5.9269]
[1747774859775,0.03802297,168.68,168.66,5.9267]
[1747774859971,0.03802297,168.68,168.64,93.50151867]
[1747774860870,0.03802297,168.68,168.64,109.22292097]
[1747774861072,93.44,168.77,168.64,109.22292097]
[1747774861278,93.44,168.77,168.64,109.1814023]
[1747774861482,93.44,168.77,168.64,93.46]
[1747774861869,93.44,168.77,168.66,5.9265]
[1747774862165,0.04501716,168.73,168.7,0.03956955]
[1747774862362,5.925,168.71,168.7,0.03956955]
[1747774862864,0.04501716,168.73,168.7,0.03956955]
[1747774864374,0.04501716,168.73,168.72,5.9247]
[1747774864577,0.04501716,168.73,168.72,99.3047]
[1747774865071,0.04501716,168.73,168.72,93.38]
[1747774865477,0.04501716,168.73,168.7,0.03956955]
[1747774865774,0.04501716,168.73,168.72,5.9247]
[1747774866076,0.04501716,168.73,168.7,0.03956955]
[1747774866476,0.04501716,168.73,168.7,5.96466955]
[1747774867077,0.04501716,168.73,168.71,5.9247]
[1747774867265,0.04501716,168.73,168.7,0.03956955]
[1747774867678,0.04501716,168.73,168.72,5.9247]
[1747774869383,4.1825,168.85,168.72,5.92]
[1747774869583,4.1825,168.85,168.73,95.1264]
[1747774869971,4.1825,168.85,168.82,5.9211]
[1747774870172,4.1825,168.85,168.79,93.22]
[1747774870377,0.04062215,168.84,168.8,0.03814532]
[1747774871405,0.04062215,168.84,168.83,5.9208]
[1747774871876,0.04062215,168.84,168.8,0.03814532]
[1747774872582,0.04062215,168.84,168.83,5.9208]
[1747774872776,0.04062215,168.84,168.8,0.03814532]
[1747774873082,0.04062215,168.84,168.81,5.9213]
[1747774873488,0.04062215,168.84,168.8,0.03814532]
[1747774874699,5.9211,168.83,168.8,0.03814532]
[1747774874985,0.04062215,168.84,168.8,0.03814532]
[1747774875180,5.9209,168.83,168.8,0.03814532]
[1747774875575,0.04062215,168.84,168.8,0.03814532]
[1747774877395,5.9215,168.81,168.8,0.03814532]
[1747774878196,5.9212,168.82,168.8,0.03814532]
[1747774879295,5.9215,168.81,168.8,0.03814532]
[1747774879594,93.16,168.82,168.73,93.16]
[1747774879901,5.9228,168.78,168.74,5.9237]
[1747774880296,2.01,168.81,168.73,93.16]
[1747774880597,0.04123493,168.79,168.75,0.04559429]
[1747774880800,0.03980077,168.79,168.75,0.03887334]
[1747774881001,0.03980077,168.79,168.78,5.9226]
[1747774881497,0.03980077,168.79,168.76,5.9233]
[1747774882503,0.03980077,168.79,168.77,5.9228]
[1747774883828,0.03980077,168.79,168.75,0.03887334]
[1747774884125,2.05100077,168.79,168.75,0.03887334]
[1747774884629,5.9233,168.76,168.75,0.03887334]
[1747774884836,2.0581,168.78,168.75,0.03887334]
[1747774885100,2.05100077,168.79,168.75,0.03887334]
[1747774885290,0.03980077,168.79,168.78,5.9226]
[1747774887516,0.03980077,168.79,168.77,5.9228]
[1747774887658,0.03980077,168.79,168.75,0.03887334]
[1747774887873,5.9232,168.77,168.75,0.03887334]
[1747774889236,9.9541,168.78,168.75,0.03887334]
[1747774889674,4.0314,168.78,168.75,0.03887334]
[1747774890252,4.0314,168.78,168.75,5.96227334]
[1747774890550,4.0314,168.78,168.75,0.03887334]
[1747774890928,5.9231,168.77,168.75,0.03887334]
[1747774891175,4.0314,168.78,168.73,5.9241]
[1747774891640,4.0314,168.78,168.71,5.9249]
[1747774892223,5.9236,168.75,168.73,0.04194006]
[1747774892734,5.924,168.74,168.69,93.16]
[1747774892929,93.20371455,168.76,168.65,93.16]
[1747774893181,93.16,168.76,168.65,93.16]
[1747774893493,93.16,168.76,168.67,5.9263]
[1747774893827,93.16,168.76,168.59,84.44]
[1747774893828,0.03915967,168.73,168.61,93.16]
[1747774894031,108.8814023,168.72,168.58,605.1]
[1747774894329,93.16,168.71,168.58,605.1]
[1747774894836,0.03957451,168.66,168.63,0.04263865]
[1747774895337,0.03957451,168.66,168.63,5.97023865]
[1747774895549,0.03957451,168.66,168.63,0.04263865]
[1747774896136,0.03957451,168.66,168.64,5.9273]
[1747774896344,0.03957451,168.66,168.63,0.04263865]
[1747774896932,0.03957451,168.66,168.65,5.9271]
[1747774898833,93.12,168.74,168.63,0.04263865]
[1747774899032,93.12,168.77,168.65,15.7214023]
[1747774899388,93.12,168.77,168.66,93.12]
[1747774899831,0.03964759,168.73,168.7,0.04291054]
[1747774900340,0.03964759,168.73,168.72,5.9247]
[1747774903816,0.03964759,168.73,168.7,93.16291054]
[1747774904238,0.03964759,168.73,168.7,99.08811054]
[1747774904437,5.96394759,168.73,168.7,99.08811054]
[1747774904934,0.03964759,168.73,168.7,0.04291054]
[1747774905632,5.9247,168.72,168.7,0.04291054]
[1747774906740,5.925,168.71,168.7,0.04291054]
[1747774907138,0.03964759,168.73,168.7,0.04291054]
[1747774907346,5.96424759,168.73,168.7,0.04291054]
[1747774907833,0.03964759,168.73,168.7,0.04291054]
[1747774908230,0.03964759,168.73,168.7,5.96831054]
[1747774909333,0.03964759,168.73,168.7,0.04291054]
[1747774910127,0.03964759,168.73,168.71,5.925]
[1747774910545,0.03964759,168.73,168.7,0.04291054]
[1747774911126,5.925,168.71,168.7,0.04291054]
[1747774914013,5.926,168.69,168.63,93.12]
[1747774914215,5.926,168.69,168.62,334.51961004]
[1747774914514,5.9262,168.68,168.62,334.51961004]
[1747774915015,5.96391474,168.67,168.64,5.9273]
[1747774916117,0.03741474,168.67,168.65,5.9271]
[1747774916307,0.03741474,168.67,168.63,0.04047847]
[1747774916815,0.03741474,168.67,168.65,5.9269]
[1747774917315,0.03741474,168.67,168.63,0.04047847]
[1747774918715,0.03741474,168.67,168.66,5.9268]
[1747774921111,2.095,168.78,168.66,99.06]
[1747774921307,93.14,168.82,168.68,15.7214023]
[1747774921515,95.1331,168.83,168.68,15.7214023]
[1747774922117,0.04354923,168.77,168.74,0.03757073]
[1747774922420,0.04354923,168.77,168.76,5.9233]
[1747774924425,0.04354923,168.77,168.75,5.9236]
[1747774924620,0.04354923,168.77,168.74,0.03757073]
[1747774925822,0.04354923,168.77,168.74,5.96127073]
[1747774926319,0.04354923,168.77,168.75,5.9233]
[1747774926520,0.04354923,168.77,168.74,0.03757073]
[1747774926920,0.04354923,168.77,168.74,5.96127073]
[1747774927220,0.04354923,168.77,168.74,0.03757073]
[1747774927722,0.04354923,168.77,168.75,5.9233]
[1747774929724,0.04354923,168.77,168.74,5.96147073]
[1747774930026,0.04354923,168.77,168.74,0.03757073]
[1747774930621,0.04354923,168.77,168.75,93.02]
[1747774930822,5.9204,168.85,168.75,93.02]
[1747774931025,2.095,168.86,168.75,108.7414023]
[1747774931282,2.095,168.86,168.76,4.1184]
[1747774931422,2.095,168.86,168.83,5.9206]
[1747774932026,8.05424017,168.86,168.83,5.96556669]
[1747774932230,8.05424017,168.86,168.84,5.9205]
[1747774932637,0.03934017,168.86,168.83,0.04496669]
[1747774932827,0.03934017,168.86,168.84,5.9205]
[1747774934024,5.95914017,168.86,168.83,5.96566669]
[1747774934533,0.03934017,168.86,168.83,0.04496669]
[1747774934736,5.9201,168.85,168.83,0.04496669]
[1747774935425,0.03934017,168.86,168.83,0.04496669]
[1747774935824,0.03934017,168.86,168.84,93.0]
[1747774936145,0.03934017,168.86,168.85,5.9201]
[1747774938325,0.03934017,168.86,168.84,93.0]
[1747774939835,5.95944017,168.86,168.84,93.0]
[1747774940428,0.03934017,168.86,168.84,98.9204]
[1747774940633,0.03934017,168.86,168.84,93.0]
[1747774941025,0.03934017,168.86,168.84,98.9203]
[1747774941225,0.03934017,168.86,168.84,93.0]
[1747774941557,0.03934017,168.86,168.85,5.9201]
[1747774943343,0.03934017,168.86,168.84,98.9204]
[1747774944131,0.03934017,168.86,168.83,0.04496669]
[1747774944732,5.9201,168.85,168.83,0.04496669]
[1747774944932,0.03934017,168.86,168.83,0.04496669]
[1747774945535,5.9205,168.84,168.83,0.04496669]
[1747774946041,0.03934017,168.86,168.83,0.04496669]
[1747774946243,5.9204,168.85,168.83,0.04496669]
[1747774946762,0.03934017,168.86,168.83,0.04496669]
[1747774947539,5.9205,168.84,168.83,0.04496669]
[1747774948245,5.9221,168.8,168.74,92.96]
[1747774948553,92.96,168.84,168.74,92.96]
[1747774949150,0.04362608,168.81,168.77,0.04169565]
[1747774949354,5.9219,168.8,168.77,0.04169565]
[1747774949649,0.04362608,168.81,168.77,0.04169565]
[1747774949853,0.04362608,168.81,168.78,92.96]
[1747774950151,1.9106,168.91,168.78,97.0384]
[1747774950351,1.9106,168.91,168.84,5.9202]
[1747774950956,0.04213399,168.89,168.86,0.03761434]
[1747774951143,93.00213399,168.89,168.78,92.96]
[1747774951345,92.96,168.89,168.78,92.96]
[1747774951550,5.9215,168.82,168.78,5.9223]
[1747774951749,92.96,168.85,168.78,5.9223]
[1747774952251,5.9215,168.82,168.8,0.04133042]
[1747774952553,0.04246119,168.83,168.8,0.04133042]
[1747774953354,5.9215,168.81,168.8,0.04133042]
[1747774954151,0.04246119,168.83,168.8,0.04133042]
[1747774954363,0.04246119,168.83,168.8,5.96323042]
[1747774954661,5.96336119,168.83,168.8,0.04133042]
[1747774954855,0.04246119,168.83,168.8,0.04133042]
[1747774955060,5.9212,168.82,168.8,0.04133042]
[1747774955255,0.04246119,168.83,168.8,0.04133042]
[1747774955855,5.9214,168.82,168.8,0.04133042]
[1747774956260,0.04246119,168.83,168.82,5.9212]
[1747774956760,94.8706,168.91,168.8,0.04133042]
[1747774956962,1.9106,168.91,168.8,3.8343]
[1747774957366,1.9106,168.91,168.89,5.9186]
[1747774957561,1.9106,168.91,168.85,92.96]
[1747774957759,0.04471134,168.9,168.86,0.0440141]
[1747774957955,0.04471134,168.9,168.88,5.919]
[1747774958555,0.04471134,168.9,168.89,5.9187]
[1747774960260,2.0224,168.97,168.89,92.9]
[1747774961059,5.9163,168.96,168.93,5.9171]
[1747774961360,5.96034795,168.96,168.93,5.9549864]
[1747774961764,0.04404795,168.96,168.94,5.9169]
[1747774962688,0.04404795,168.96,168.95,5.9166]
[1747774963162,0.04404795,168.96,168.94,5.917]
[1747774964964,0.04404795,168.96,168.93,92.9178864]
[1747774966263,0.04404795,168.96,168.93,0.0378864]
[1747774966562,5.96044795,168.96,168.93,0.0378864]
[1747774967066,0.04404795,168.96,168.93,0.0378864]
[1747774968161,0.04404795,168.96,168.95,5.9166]
[1747774968366,0.04404795,168.96,168.93,0.0378864]
[1747774968559,0.04404795,168.96,168.94,92.86]
[1747774968862,0.04404795,168.96,168.94,98.7767]
[1747774969074,0.04404795,168.96,168.94,92.86]
[1747774969565,0.04404795,168.96,168.94,98.7769]
[1747774970458,0.04404795,168.96,168.94,92.86]
[1747774971666,5.9167,168.95,168.93,0.0378864]
[1747774971976,0.04404795,168.96,168.93,0.0378864]
[1747774972160,5.9166,168.95,168.93,0.0378864]
[1747774972363,0.04404795,168.96,168.93,0.0378864]
[1747774973968,5.96054795,168.96,168.93,5.9551864]
[1747774974159,0.04404795,168.96,168.93,5.9551864]
[1747774975166,5.96034795,168.96,168.93,5.9551864]
[1747774975408,0.04404795,168.96,168.93,0.0378864]
[1747774975765,5.96044795,168.96,168.93,0.0378864]
[1747774976065,5.96044795,168.96,168.93,5.9549864]
[1747774976366,0.04404795,168.96,168.93,5.9549864]
[1747774976767,0.04404795,168.96,168.93,0.0378864]
[1747774977571,0.04404795,168.96,168.94,5.9169]
[1747774978966,0.04404795,168.96,168.93,0.0378864]
[1747774979166,0.04404795,168.96,168.95,5.9166]
[1747774980973,0.04404795,168.96,168.95,98.7566]
[1747774983879,0.04404795,168.96,168.93,0.0378864]
[1747774985081,0.04404795,168.96,168.95,5.9166]
[1747774993683,0.04404795,168.96,168.93,0.0378864]
[1747774994084,5.96054795,168.96,168.93,0.0378864]
[1747774994285,5.96054795,168.96,168.93,5.9549864]
[1747774995390,0.04404795,168.96,168.94,5.9169]
[1747774995598,0.04404795,168.96,168.93,0.0378864]
[1747774996981,3.9069,169.03,168.93,0.0378864]
[1747774996982,9.8208,169.03,168.93,0.0378864]
[1747774997186,11.02228773,169.07,168.93,17.58593202]
[1747774997425,11.02228773,169.07,168.93,17.54804562]
[1747774997588,16.93488773,169.07,169.04,5.9132]
[1747774998093,16.97962592,169.07,169.04,5.95602013]
[1747774998286,11.06702592,169.07,169.04,5.95602013]
[1747774998487,11.06702592,169.07,169.04,0.04282013]
[1747774998689,16.97962592,169.07,169.04,0.04282013]
[1747774999088,11.06702592,169.07,169.04,5.95612013]
[1747774999295,11.06702592,169.07,169.04,0.04282013]
[1747774999504,5.9131,169.05,169.04,0.04282013]
[1747775000290,5.9129,169.06,169.04,0.04282013]
[1747775001097,5.9131,169.05,169.04,0.04282013]
[1747775001905,0.04473819,169.07,169.04,0.04282013]
[1747775003302,0.04473819,169.07,169.05,5.9131]
[1747775003711,0.04473819,169.07,169.04,0.04282013]
[1747775004113,0.04473819,169.07,169.04,92.78282013]
[1747775004507,0.04473819,169.07,169.05,5.9128]
[1747775005218,0.04473819,169.07,169.06,5.9128]
[1747775005408,0.04473819,169.07,169.04,92.78282013]
[1747775006309,0.04473819,169.07,169.05,5.9131]
[1747775008011,0.04473819,169.07,169.04,92.78282013]
[1747775008907,0.04473819,169.07,169.06,5.9128]
[1747775011615,0.04473819,169.07,169.05,5.913]
[1747775011816,0.04473819,169.07,169.04,92.78282013]
[1747775012619,0.04473819,169.07,169.05,5.9128]
[1747775012810,0.04473819,169.07,169.04,92.78282013]
[1747775013014,3.9557,169.15,169.06,9.76115288]
[1747775013211,2.0271,169.19,169.12,5.9107]
[1747775013739,5.9087,169.18,169.12,5.9107]
[1747775013908,2.0271,169.19,169.12,5.9107]
[1747775014112,0.04193936,169.14,169.12,5.9107]
[1747775015520,14.1725824,169.13,169.12,5.9107]
[1747775016521,0.04193936,169.14,169.12,5.9107]
[1747775016522,5.9073,169.22,169.12,15.68115288]
[1747775016734,25.01278197,169.28,169.12,9.76115288]
[1747775016735,96.6783,169.28,169.12,9.76115288]
[1747775017126,5.9071,169.23,169.12,9.76115288]
[1747775017516,5.9071,169.23,169.16,0.03931201]
[1747775017722,0.03747297,169.19,169.18,5.9086]
[1747775019726,0.03747297,169.19,169.17,92.68]
[1747775020226,0.03747297,169.19,169.18,5.9086]
[1747775021433,0.03747297,169.19,169.17,98.5888]
[1747775022226,0.03747297,169.19,169.16,0.03931201]
[1747775023131,5.9088,169.18,169.16,0.03931201]
[1747775023329,0.03747297,169.19,169.16,0.03931201]
[1747775023656,0.03747297,169.19,169.16,5.94841201]
[1747775024424,0.03747297,169.19,169.17,5.9089]
[1747775024631,0.03747297,169.19,169.16,0.03931201]
[1747775024824,2.0394,169.28,169.17,9.76115288]
[1747775025127,2.0394,169.28,169.22,5.9069]
[1747775025426,92.58,169.27,169.2,5.9076]
[1747775025833,92.58,169.27,169.22,0.04415529]
[1747775026029,0.04444138,169.25,169.22,0.04415529]
[1747775026860,0.04444138,169.25,169.23,5.9066]
[1747775027528,0.04444138,169.25,169.24,5.9065]
[1747775030141,0.04444138,169.25,169.23,98.4668]
[1747775030353,0.04444138,169.25,169.23,92.56]
[1747775031232,0.04444138,169.25,169.24,5.9065]
[1747775031727,0.04444138,169.25,169.23,98.4667]
[1747775032029,0.04444138,169.25,169.23,92.56]
[1747775032228,8.97565766,169.29,169.26,5.9056]
[1747775032423,3.07055766,169.29,169.26,98.4656]
[1747775033333,3.11297924,169.29,169.26,92.60204897]
[1747775033533,5.9051,169.28,169.26,0.04204897]
[1747775033740,3.11297924,169.29,169.26,0.04204897]
[1747775034267,9.01797924,169.29,169.26,0.04204897]
[1747775035129,3.11297924,169.29,169.26,0.04204897]
[1747775036035,3.11297924,169.29,169.28,5.9051]
[1747775037227,2.0824,169.38,169.32,5.9034]
[1747775037534,4.1554,169.38,169.32,5.9034]
[1747775037724,5.9017,169.38,169.3,92.54]
[1747775037926,3.8318,169.46,169.3,92.54]
[1747775038121,96.3718,169.46,169.36,0.0396052]
[1747775038329,0.03942893,169.4,169.36,0.0396052]
[1747775040330,0.03942893,169.4,169.38,5.9016]
[1747775040534,0.03942893,169.4,169.36,0.0396052]
[1747775040942,0.03942893,169.4,169.39,5.9013]
[1747775041338,0.03942893,169.4,169.36,0.0396052]
[1747775041551,0.03942893,169.4,169.24,15.58053466]
[1747775041752,92.52,169.42,169.24,1.9082]
[1747775041753,15.58053466,169.39,169.24,1.9082]
[1747775041953,1.9622,169.38,169.26,92.5]
[1747775042135,92.5,169.37,169.26,92.5]
[1747775042337,1.9622,169.38,169.26,92.5]
[1747775042539,0.04483995,169.34,169.3,0.03730746]
[1747775042837,0.04483995,169.34,169.31,92.5]
[1747775044155,0.04483995,169.34,169.33,5.9034]
[1747775044448,0.04483995,169.34,169.31,92.5]
[1747775044640,0.04483995,169.34,169.33,5.9034]
[1747775045227,3.995e-05,169.34,169.33,5.9034]
[1747775050249,3.995e-05,169.34,169.3,0.03730746]
[1747775050749,92.48003995,169.34,169.25,5.9058]
[1747775050936,5.9052,169.28,169.25,5.9058]
[1747775051535,0.04470226,169.28,169.25,0.03884249]
[1747775052048,5.94980226,169.28,169.25,5.94474249]
[1747775052244,0.04470226,169.28,169.25,5.94474249]
[1747775052434,0.04470226,169.28,169.25,0.03884249]
[1747775052648,0.04470226,169.28,169.27,5.9055]
[1747775053744,0.04470226,169.28,169.26,5.9057]
[1747775054043,0.04470226,169.28,169.25,92.49884249]
[1747775054253,0.04470226,169.28,169.26,5.9055]
[1747775054746,0.04470226,169.28,169.26,5.9058]
[1747775054941,0.04470226,169.28,169.25,92.49884249]
[1747775055543,0.04470226,169.28,169.27,5.9055]
[1747775056046,0.04470226,169.28,169.26,5.9056]
[1747775056436,0.04470226,169.28,169.25,92.49884249]
[1747775056640,0.04470226,169.28,169.25,0.03884249]
[1747775056840,5.9055,169.27,169.25,0.03884249]
[1747775057080,0.04470226,169.28,169.25,0.03884249]
[1747775057437,5.9058,169.26,169.25,0.03884249]
[1747775057638,0.04470226,169.28,169.22,92.48]
[1747775057842,0.04470226,169.28,169.21,5.9073]
[1747775058049,0.04470226,169.28,169.19,602.86]
[1747775058347,92.48,169.27,169.18,234.73697528]
[1747775058541,5.9064,169.25,169.18,234.73697528]
[1747775058748,0.03740006,169.23,169.2,0.03785191]
[1747775059749,5.9072,169.22,169.18,234.73697528]
[1747775059937,7.9104,169.22,169.18,234.73697528]
[1747775060151,2.0032,169.22,169.18,234.73697528]
[1747775060659,2.0032,169.22,169.18,240.64537528]
[1747775060946,2.0032,169.22,169.18,234.77630344]
[1747775061156,7.9105,169.22,169.18,5.94762816]
[1747775062043,5.9076,169.21,169.18,0.03932816]
[1747775062351,2.0032,169.22,169.18,0.03932816]
[1747775063162,5.9081,169.2,169.18,0.03932816]
[1747775063349,2.0032,169.22,169.16,5.909]
[1747775063849,2.0032,169.22,169.1,510.3]
[1747775064051,2.0032,169.22,169.09,92.5]
[1747775064250,0.04485137,169.17,169.14,0.04075782]
[1747775064439,92.54485137,169.17,169.12,5.9104]
[1747775064750,1.9626,169.16,169.06,93.77738026]
[1747775064949,5.911,169.11,169.06,1.27738026]
[1747775065249,92.5,169.11,169.06,1.27738026]
[1747775065451,2.13767523,169.1,169.07,0.04502831]
[1747775065650,2.13767523,169.1,169.0,2.55714392]
[1747775066053,5.9119,169.09,169.04,5.9134]
[1747775066351,2.13767523,169.1,169.04,5.9134]
[1747775066552,2.13767523,169.1,169.0,2.55714392]
[1747775066754,2.13767523,169.1,169.05,0.04107124]
[1747775067353,0.03837523,169.1,169.05,0.04107124]
[1747775067546,0.03837523,169.1,169.09,5.9118]
[1747775071848,92.56,169.19,169.09,5.92]
[1747775072054,1.9786,169.2,169.08,15.58053466]
[1747775072445,1.9786,169.2,169.18,5.9084]
[1747775072646,1.9786,169.2,169.12,92.56]
[1747775072858,1.9786,169.2,169.17,0.03765732]